bitfinex-derivatives/quotes_BTCF0:USTF0_20250718
["timestamp","ask_amount","ask_price","bid_price","bid_amount"]
[1752869261613,0.31506,117290.0,117280.0,0.39039645]
[1752869261814,1.21439312,117290.0,117280.0,2.14429791]
[1752869262115,1.38162929,117290.0,117280.0,1.70466718]
[1752869262317,1.88162929,117290.0,117280.0,1.69146718]
[1752869262817,1.8210238,117290.0,117280.0,1.69146718]
[1752869263012,1.8210238,117290.0,117280.0,1.71758182]
[1752869263410,1.88362929,117290.0,117280.0,1.27795109]
[1752869263613,1.88362929,117290.0,117280.0,1.71758182]
[1752869263818,1.88462929,117290.0,117280.0,1.71758182]
[1752869264221,1.88462929,117290.0,117280.0,1.27795109]
[1752869264520,1.88462929,117290.0,117280.0,1.71758182]
[1752869265115,1.88462929,117290.0,117280.0,2.15721255]
[1752869265320,1.88462929,117290.0,117280.0,1.71758182]
[1752869265719,1.89991061,117290.0,117280.0,1.71758182]
[1752869266517,1.89991061,117290.0,117280.0,1.69817179]
[1752869266819,1.80693474,117290.0,117280.0,1.69817179]
[1752869267013,1.86746456,117290.0,117280.0,1.69817179]
[1752869267213,1.86746456,117290.0,117280.0,1.32718537]
[1752869267409,1.80693474,117290.0,117280.0,1.32718537]
[1752869267617,1.86746456,117290.0,117280.0,1.68798537]
[1752869267818,1.86746456,117290.0,117280.0,1.32718537]
[1752869268520,1.80693474,117290.0,117280.0,1.24835464]
[1752869268720,1.80693474,117290.0,117280.0,1.32718537]
[1752869268917,1.80693474,117290.0,117280.0,1.68798537]
[1752869269523,1.80693474,117290.0,117280.0,1.24835464]
[1752869269723,1.80693474,117290.0,117280.0,1.68798537]
[1752869274626,1.80693474,117290.0,117280.0,1.66857498]
[1752869275023,1.80693474,117290.0,117280.0,1.22894425]
[1752869275223,1.80693474,117290.0,117280.0,1.66857498]
[1752869281435,1.80693474,117290.0,117280.0,1.22894425]
[1752869281736,1.80693474,117290.0,117280.0,1.66857498]
[1752869282335,1.80693474,117290.0,117280.0,1.22894425]
[1752869282729,1.80693474,117290.0,117280.0,1.64916433]
[1752869283333,1.86746456,117290.0,117280.0,1.64916433]
[1752869283938,1.86746456,117290.0,117280.0,1.2095336]
[1752869284132,1.80693474,117290.0,117280.0,1.28836433]
[1752869284437,1.86746456,117290.0,117280.0,0.83473489]
[1752869284838,1.86758963,117290.0,117280.0,1.27436562]
[1752869286035,1.86758963,117290.0,117280.0,1.56956562]
[1752869286934,1.86758963,117290.0,117280.0,1.12993489]
[1752869287136,1.80693474,117290.0,117280.0,1.56956562]
[1752869287437,1.88282155,117290.0,117280.0,1.12993489]
[1752869287636,1.88282155,117290.0,117280.0,1.56956562]
[1752869287935,1.80693474,117290.0,117280.0,1.12993489]
[1752869288132,1.80693474,117290.0,117280.0,1.56956562]
[1752869288338,1.80693474,117290.0,117280.0,1.12993489]
[1752869288536,1.80693474,117290.0,117280.0,1.56956562]
[1752869288730,1.80693474,117290.0,117280.0,1.12993489]
[1752869288931,1.86761928,117290.0,117280.0,1.12993489]
[1752869289128,1.86761928,117290.0,117280.0,1.56956562]
[1752869289839,1.80693474,117290.0,117280.0,1.56956562]
[1752869290137,1.80693474,117290.0,117280.0,1.93036562]
[1752869290738,1.80693474,117290.0,117280.0,1.5501544]
[1752869291039,1.88282155,117290.0,117280.0,1.11052367]
[1752869291339,1.88282155,117290.0,117280.0,1.5501544]
[1752869291843,1.80693474,117290.0,117280.0,1.5501544]
[1752869292734,1.91317627,117290.0,117280.0,1.5501544]
[1752869293031,1.80693474,117290.0,117280.0,1.53615582]
[1752869293235,1.91327531,117290.0,117280.0,1.53615582]
[1752869293440,1.91327531,117290.0,117280.0,1.09652509]
[1752869293640,1.91327531,117290.0,117280.0,1.53615582]
[1752869294541,1.91327531,117290.0,117280.0,1.09652509]
[1752869294741,1.91327531,117290.0,117280.0,1.53615582]
[1752869294943,1.91327531,117290.0,117280.0,1.09652509]
[1752869295139,1.91327531,117290.0,117280.0,1.53615582]
[1752869295339,1.80693474,117290.0,117280.0,1.53615582]
[1752869295846,1.80693474,117290.0,117280.0,1.42096669]
[1752869298643,1.80693474,117290.0,117280.0,1.40155503]
[1752869298843,1.91327719,117290.0,117280.0,1.40155503]
[1752869299640,1.80693474,117290.0,117280.0,1.40155503]
[1752869300440,1.33401166,117290.0,117280.0,2.21297576]
[1752869300746,1.06393,117290.0,117280.0,1.91777576]
[1752869300941,1.13988856,117290.0,117280.0,2.08818296]
[1752869301143,1.13988856,117290.0,117280.0,2.25871095]
[1752869301346,1.01895856,117290.0,117280.0,2.25871095]
[1752869301549,1.00376029,117290.0,117280.0,2.25871095]
[1752869301942,1.12323029,117290.0,117280.0,2.25871095]
[1752869302446,1.17028029,117290.0,117280.0,1.20904229]
[1752869302653,1.17028029,117290.0,117280.0,2.08830375]
[1752869302952,1.19386029,117290.0,117280.0,2.08830375]
[1752869303552,1.19386029,117290.0,117280.0,2.25871095]
[1752869303948,1.19386029,117290.0,117280.0,1.91777576]
[1752869305159,1.19386029,117290.0,117280.0,1.0385143]
[1752869305458,1.1331,117290.0,117280.0,1.91777576]
[1752869305755,1.1331,117290.0,117280.0,2.08818296]
[1752869306056,1.1331,117290.0,117280.0,1.91777576]
[1752869306258,1.19381726,117290.0,117280.0,2.08818296]
[1752869306654,1.19381203,117290.0,117280.0,2.06877433]
[1752869307453,1.17023203,117290.0,117280.0,1.18951287]
[1752869307659,1.17023203,117290.0,117280.0,2.06877433]
[1752869308159,1.17023203,117290.0,117280.0,1.18951287]
[1752869308354,1.17023203,117290.0,117280.0,2.06877433]
[1752869309356,1.00371203,117290.0,117280.0,1.4475733]
[1752869309554,1.00371203,117290.0,117280.0,3.4321733]
[1752869309751,1.12318203,117290.0,117280.0,3.4321733]
[1752869309960,1.17023203,117290.0,117280.0,3.4321733]
[1752869310563,1.12318203,117290.0,117280.0,3.4321733]
[1752869310758,1.12318203,117290.0,117280.0,3.85270129]
[1752869310759,0.09406217,117290.0,117280.0,3.85270129]
[1752869310960,0.13911906,117300.0,117290.0,0.1703927]
[1752869311160,0.46911906,117300.0,117290.0,1.41045416]
[1752869311359,0.349188,117300.0,117290.0,1.83196616]
[1752869312459,0.351188,117300.0,117290.0,1.83196616]
[1752869312660,0.302188,117300.0,117290.0,1.83196616]
[1752869312860,0.294188,117300.0,117290.0,1.39233543]
[1752869313158,0.4291,117300.0,117290.0,1.39233543]
[1752869314758,0.31061,117300.0,117290.0,1.39233543]
[1752869314957,0.41911,117300.0,117290.0,1.39233543]
[1752869315158,0.28532,117300.0,117290.0,1.39233543]
[1752869315357,0.36705,117300.0,117290.0,1.39233543]
[1752869315561,0.07,117320.0,117310.0,0.1703636]
[1752869315763,0.62066,117330.0,117320.0,0.1703491]
[1752869315965,0.64747,117330.0,117320.0,0.97077983]
[1752869316159,0.64747,117330.0,117320.0,1.14124383]
[1752869316160,1.17117,117330.0,117320.0,1.14124383]
[1752869316360,1.14747,117330.0,117320.0,1.58087456]
[1752869316559,0.48,117330.0,117320.0,1.58087456]
[1752869316759,0.48,117330.0,117320.0,1.41041056]
[1752869316965,0.60066,117330.0,117320.0,1.41041056]
[1752869317168,0.60066,117330.0,117320.0,0.5311491]
[1752869317369,0.48,117330.0,117320.0,0.97077983]
[1752869317563,0.48,117330.0,117320.0,1.58087456]
[1752869318470,0.481,117330.0,117320.0,1.83287456]
[1752869318662,0.60266,117330.0,117320.0,1.83587456]
[1752869318863,0.60266,117330.0,117320.0,1.14824383]
[1752869319762,0.67317,117330.0,117320.0,1.94088383]
[1752869320266,0.67317,117330.0,117320.0,2.08218383]
[1752869320470,0.67317,117330.0,117320.0,1.5012531]
[1752869320668,0.67317,117330.0,117320.0,3.11784383]
[1752869321067,0.67317,117330.0,117320.0,2.6772131]
[1752869321268,0.67317,117330.0,117320.0,3.11684383]
[1752869321672,1.24195406,117330.0,117320.0,1.54516]
[1752869321969,1.24195406,117330.0,117320.0,2.94637923]
[1752869322264,1.24195406,117330.0,117320.0,2.92697886]
[1752869322874,1.24195406,117330.0,117320.0,2.31699963]
[1752869323572,1.74195406,117330.0,117320.0,2.31699963]
[1752869328573,2.28821547,117330.0,117320.0,2.31699963]
[1752869329173,1.84858474,117330.0,117320.0,2.31699963]
[1752869329370,2.28821547,117330.0,117320.0,2.31699963]
[1752869330181,2.28821547,117330.0,117320.0,1.9756]
[1752869330376,2.3489275,117330.0,117320.0,1.95619601]
[1752869330980,2.28821547,117330.0,117320.0,1.95619601]
[1752869331481,2.36417403,117330.0,117320.0,1.95619601]
[1752869331680,2.28821547,117330.0,117320.0,1.95619601]
[1752869331873,2.36417403,117330.0,117320.0,1.95619601]
[1752869332073,1.9245433,117330.0,117320.0,1.95619601]
[1752869332273,2.36417403,117330.0,117320.0,1.95619601]
[1752869332474,2.72497403,117330.0,117320.0,1.95619601]
[1752869332675,2.36417403,117330.0,117320.0,1.95619601]
[1752869335380,1.9245433,117330.0,117320.0,1.95619601]
[1752869335580,2.36417403,117330.0,117320.0,1.95619601]
[1752869335879,1.9245433,117330.0,117320.0,1.95619601]
[1752869336078,2.36417403,117330.0,117320.0,1.95619601]
[1752869338377,2.36417403,117330.0,117320.0,1.93679139]
[1752869338875,1.9245433,117330.0,117320.0,1.93679139]
[1752869339076,2.36417403,117330.0,117320.0,1.93679139]
[1752869339474,2.36417403,117330.0,117320.0,2.29759139]
[1752869339983,2.36417403,117330.0,117320.0,1.93679139]
[1752869340282,1.9245433,117330.0,117320.0,1.93679139]
[1752869340479,2.36417403,117330.0,117320.0,2.29759139]
[1752869340777,2.36417403,117330.0,117320.0,1.93679139]
[1752869340983,2.72497403,117330.0,117320.0,1.93679139]
[1752869341281,2.36417403,117330.0,117320.0,1.93679139]
[1752869341475,1.9245433,117330.0,117320.0,1.93679139]
[1752869341682,1.84858474,117330.0,117320.0,1.93679139]
[1752869341878,2.39454779,117330.0,117320.0,1.93679139]
[1752869342680,2.28821547,117330.0,117320.0,1.90906921]
[1752869342875,2.45867947,117330.0,117320.0,1.90906921]
[1752869344584,2.01904874,117330.0,117320.0,1.90906921]
[1752869344781,2.45867947,117330.0,117320.0,1.90906921]
[1752869345183,2.45867947,117330.0,117320.0,1.79391571]
[1752869345584,2.5645433,117330.0,117320.0,1.79391571]
[1752869345884,2.7548793,117330.0,117320.0,1.79391571]
[1752869347485,2.3940793,117330.0,117320.0,1.79391571]
[1752869347785,2.7548793,117330.0,117320.0,1.79391571]
[1752869348384,2.3940793,117330.0,117320.0,1.79391571]
[1752869348585,2.7548793,117330.0,117320.0,1.79391571]
[1752869348785,2.31524857,117330.0,117320.0,1.79391571]
[1752869348985,2.7548793,117330.0,117320.0,1.79391571]
[1752869349286,2.3940793,117330.0,117320.0,1.79391571]
[1752869349586,2.2548793,117330.0,117320.0,0.79124]
[1752869349784,0.12558,117310.0,117300.0,0.3608]
[1752869349984,1.68780479,117310.0,117300.0,1.12412]
[1752869350186,1.35480474,117310.0,117300.0,1.12412]
[1752869350986,1.35580474,117310.0,117300.0,1.12612]
[1752869351384,1.43145023,117310.0,117300.0,1.12612]
[1752869351587,1.49201502,117310.0,117300.0,1.12612]
[1752869351787,1.41736953,117310.0,117300.0,1.12612]
[1752869352685,1.41736953,117310.0,117300.0,1.63495073]
[1752869353790,1.41736953,117310.0,117300.0,1.19532]
[1752869353990,0.80793,117310.0,117300.0,1.61554423]
[1752869354189,0.80793,117310.0,117300.0,1.78592453]
[1752869354190,0.84489857,117310.0,117300.0,1.78592453]
[1752869354589,0.84489857,117310.0,117300.0,1.61554423]
[1752869354892,0.76479857,117310.0,117300.0,1.78592453]
[1752869355293,0.76479857,117310.0,117300.0,1.61554423]
[1752869355495,0.76479857,117310.0,117300.0,1.1759135]
[1752869355794,0.78843857,117310.0,117300.0,1.61554423]
[1752869356193,0.72783,117310.0,117300.0,1.78592453]
[1752869357096,0.72783,117310.0,117300.0,1.61554423]
[1752869357294,0.72783,117310.0,117300.0,1.78592483]
[1752869357892,0.72783,117310.0,117300.0,1.61554423]
[1752869358494,0.80793,117310.0,117300.0,1.61554423]
[1752869358994,0.80793,117310.0,117300.0,1.1759135]
[1752869359197,1.24756073,117310.0,117300.0,0.4071]
[1752869359399,1.68980479,117310.0,117300.0,1.16186]
[1752869359598,1.35419141,117310.0,117300.0,0.002]
[1752869359795,2.21791877,117310.0,117300.0,0.002]
[1752869360299,2.21791877,117310.0,117300.0,0.75568]
[1752869361102,2.21891877,117310.0,117300.0,0.75468]
[1752869361799,1.77928804,117310.0,117300.0,0.75468]
[1752869362004,2.21891877,117310.0,117300.0,0.75468]
[1752869362206,1.77928804,117310.0,117300.0,0.75468]
[1752869362503,1.79743547,117310.0,117300.0,0.75468]
[1752869362705,1.41848804,117310.0,117300.0,0.75468]
[1752869363106,1.79743547,117310.0,117300.0,0.75468]
[1752869363308,1.79643547,117310.0,117300.0,0.75468]
[1752869363505,1.85811877,117310.0,117300.0,0.75468]
[1752869364109,1.79743547,117310.0,117300.0,0.75468]
[1752869364599,1.85811877,117310.0,117300.0,0.75468]
[1752869364907,1.41848804,117310.0,117300.0,0.75468]
[1752869365108,1.85811877,117310.0,117300.0,0.75468]
[1752869366211,1.41848804,117310.0,117300.0,0.75468]
[1752869366407,1.85811877,117310.0,117300.0,0.75468]
[1752869368414,1.79743547,117310.0,117300.0,0.75468]
[1752869369414,1.35780474,117310.0,117300.0,0.75468]
[1752869369713,1.79743547,117310.0,117300.0,0.75468]
[1752869372114,1.35780474,117310.0,117300.0,0.75468]
[1752869372313,1.79743547,117310.0,117300.0,0.75468]
[1752869372718,1.87308096,117310.0,117300.0,0.75468]
[1752869372922,1.43345023,117310.0,117300.0,0.001]
[1752869373218,1.87308096,117310.0,117300.0,0.7456]
[1752869373815,1.87308096,117310.0,117300.0,0.74484]
[1752869374319,1.87308096,117310.0,117300.0,0.72543093]
[1752869374920,1.87308096,117310.0,117290.0,0.3608]
[1752869375121,1.06804479,117300.0,117290.0,0.40519]
[1752869375426,1.52804479,117300.0,117290.0,1.14643]
[1752869377117,1.52904479,117300.0,117290.0,1.14643]
[1752869377323,1.53004479,117300.0,117290.0,1.14843]
[1752869377522,1.53004479,117300.0,117290.0,0.3628]
[1752869377822,1.53004479,117300.0,117290.0,1.10168]
[1752869378623,1.09041406,117300.0,117290.0,1.10168]
[1752869378818,1.53004479,117300.0,117290.0,1.10168]
[1752869379513,1.53004479,117300.0,117290.0,0.3628]
[1752869379720,1.53004479,117300.0,117290.0,1.09964]
[1752869379917,1.09041406,117300.0,117290.0,1.09964]
[1752869380320,1.53004479,117300.0,117290.0,1.09964]
[1752869380925,1.09041406,117300.0,117290.0,1.09964]
[1752869381224,1.53004479,117300.0,117290.0,1.09964]
[1752869382623,1.21861406,117300.0,117290.0,1.09964]
[1752869382821,1.65824479,117300.0,117290.0,1.09964]
[1752869383021,1.21861406,117300.0,117290.0,1.09964]
[1752869383221,1.65824479,117300.0,117290.0,1.09964]
[1752869384227,1.73389028,117300.0,117290.0,1.09964]
[1752869386625,1.29425955,117300.0,117290.0,1.09964]
[1752869386826,1.75094655,117300.0,117290.0,1.09964]
[1752869387832,1.31131582,117300.0,117290.0,1.09964]
[1752869388022,1.75094655,117300.0,117290.0,1.09964]
[1752869388427,1.75094655,117300.0,117290.0,0.73884]
[1752869388736,1.75094655,117300.0,117290.0,0.78323]
[1752869389127,1.73389028,117300.0,117290.0,0.78323]
[1752869389732,1.29425955,117300.0,117290.0,0.78323]
[1752869389933,1.73389028,117300.0,117290.0,0.78323]
[1752869390836,1.29425955,117300.0,117290.0,1.14403]
[1752869391130,0.72526211,117300.0,117290.0,1.82265633]
[1752869391334,0.59462211,117300.0,117290.0,1.82265633]
[1752869391829,0.47893211,117300.0,117290.0,1.99316833]
[1752869392033,0.47005308,117300.0,117290.0,2.24316833]
[1752869392231,0.47005308,117300.0,117290.0,2.32837833]
[1752869392728,0.39851402,117300.0,117290.0,2.32837833]
[1752869392930,0.39851402,117300.0,117290.0,2.32848248]
[1752869395634,0.39851402,117300.0,117290.0,2.24327248]
[1752869400138,0.39851402,117300.0,117290.0,1.99327248]
[1752869400838,0.51729402,117300.0,117290.0,1.08603688]
[1752869401038,0.51729402,117300.0,117290.0,1.97391248]
[1752869401228,0.56503402,117300.0,117290.0,1.08603688]
[1752869401429,0.58779402,117300.0,117290.0,1.80371688]
[1752869401633,0.58779402,117300.0,117290.0,1.63320488]
[1752869401828,0.62068402,117300.0,117290.0,1.63320488]
[1752869402039,0.70340402,117300.0,117290.0,1.80360048]
[1752869402239,0.58779402,117300.0,117290.0,1.80360048]
[1752869402434,0.58779402,117300.0,117290.0,1.08592048]
[1752869402739,0.58779402,117300.0,117290.0,1.80396048]
[1752869403339,0.58779402,117300.0,117290.0,0.91552488]
[1752869403539,0.71542402,117300.0,117290.0,1.80280048]
[1752869404637,0.71542402,117300.0,117290.0,1.63140488]
[1752869404838,0.71542402,117300.0,117290.0,1.80180048]
[1752869405038,0.71542402,117300.0,117290.0,2.97996048]
[1752869405237,0.71542402,117300.0,117290.0,2.97992048]
[1752869405442,0.71542402,117300.0,117290.0,2.80952488]
[1752869405643,0.71542402,117300.0,117290.0,2.97992048]
[1752869406241,0.71542402,117300.0,117290.0,2.80952488]
[1752869407043,0.71542402,117300.0,117290.0,2.32164488]
[1752869407342,0.71542402,117300.0,117290.0,2.59469415]
[1752869407736,0.71542402,117300.0,117290.0,3.03432488]
[1752869408140,1.15766808,117300.0,117290.0,3.03432488]
[1752869409441,1.15766808,117300.0,117290.0,2.59469415]
[1752869409642,1.15766808,117300.0,117290.0,3.03432488]
[1752869409943,0.71542402,117300.0,117290.0,3.20472048]
[1752869410144,0.58779402,117300.0,117290.0,2.76508975]
[1752869410344,0.71542402,117300.0,117290.0,2.59469415]
[1752869410543,0.71542402,117300.0,117290.0,3.20472048]
[1752869412143,0.71542402,117300.0,117290.0,3.20184048]
[1752869412743,1.15766808,117300.0,117290.0,3.03144488]
[1752869413343,1.22586808,117300.0,117290.0,3.03144488]
[1752869413743,1.22586808,117300.0,117290.0,3.20184048]
[1752869416749,1.20893597,117300.0,117290.0,2.59181415]
[1752869417049,1.20893597,117300.0,117290.0,3.03144488]
[1752869417946,1.20893597,117300.0,117290.0,2.76220975]
[1752869418251,1.20893597,117300.0,117290.0,3.20184048]
[1752869418551,1.20893597,117300.0,117290.0,3.03144488]
[1752869418850,1.20893597,117300.0,117290.0,2.59181415]
[1752869419052,1.20893597,117300.0,117290.0,3.03144488]
[1752869419251,1.2258582,117300.0,117290.0,3.03144488]
[1752869420347,1.2258582,117300.0,117290.0,2.59181415]
[1752869420652,1.28652917,117300.0,117290.0,3.03144488]
[1752869420950,1.2258582,117300.0,117290.0,3.03144488]
[1752869421150,1.28652917,117300.0,117290.0,3.03144488]
[1752869421350,1.2258582,117300.0,117290.0,3.20184048]
[1752869423551,1.1434582,117300.0,117290.0,3.20184048]
[1752869424151,0.63322414,117300.0,117290.0,3.20184048]
[1752869424348,0.58548414,117300.0,117290.0,3.20184048]
[1752869424551,0.46670414,117300.0,117290.0,3.37235248]
[1752869424754,0.44599126,117300.0,117290.0,3.07715248]
[1752869425157,0.44599126,117300.0,117290.0,2.63752175]
[1752869425450,0.44599126,117300.0,117290.0,3.07715248]
[1752869426654,0.44599126,117300.0,117290.0,2.90664048]
[1752869427152,0.44599126,117300.0,117290.0,2.46700975]
[1752869427353,0.44599126,117300.0,117290.0,2.90664048]
[1752869427750,0.56477126,117300.0,117290.0,2.90664048]
[1752869429653,0.56477126,117300.0,117290.0,2.46700975]
[1752869429949,0.44599126,117300.0,117290.0,3.68744048]
[1752869430157,0.44599126,117300.0,117290.0,3.68844048]
[1752869430657,0.61251126,117300.0,117290.0,2.97764048]
[1752869430852,0.63572126,117300.0,117290.0,3.68484048]
[1752869431047,0.61251126,117300.0,117290.0,3.68484048]
[1752869434556,1.20057532,117300.0,117290.0,3.68228038]
[1752869434757,1.8075077,117300.0,117290.0,0.70249415]
[1752869435061,1.82248222,117300.0,117290.0,0.65810415]
[1752869435261,1.82248222,117300.0,117290.0,1.36386415]
[1752869435461,1.74683673,117300.0,117290.0,1.36386415]
[1752869436059,1.74583673,117300.0,117290.0,1.36386415]
[1752869436259,1.74683673,117300.0,117290.0,1.00382415]
[1752869436966,2.25100605,117300.0,117290.0,0.001]
[1752869437163,2.42151805,117300.0,117290.0,0.70572]
[1752869437664,2.42151805,117300.0,117280.0,0.21678811]
[1752869437665,0.28749,117290.0,117280.0,0.19067347]
[1752869437864,2.06029702,117290.0,117280.0,0.70424]
[1752869438260,2.12080971,117290.0,117280.0,0.70424]
[1752869438465,1.49308898,117290.0,117270.0,1.73091347]
[1752869438760,0.75294406,117280.0,117270.0,2.1705442]
[1752869438956,1.20986629,117280.0,117270.0,2.8737842]
[1752869439563,1.20986629,117280.0,117270.0,2.8747842]
[1752869440168,1.20986629,117280.0,117270.0,2.43515347]
[1752869440769,1.21386629,117280.0,117270.0,2.8747842]
[1752869440967,1.27437898,117280.0,117270.0,2.91123096]
[1752869441566,1.21386629,117280.0,117270.0,2.91123096]
[1752869442166,1.21386629,117280.0,117270.0,2.47160023]
[1752869442470,1.21386629,117280.0,117270.0,2.91123096]
[1752869443171,1.21386629,117280.0,117270.0,2.47160023]
[1752869443871,1.21386629,117280.0,117270.0,2.91123096]
[1752869444174,1.21486629,117280.0,117270.0,2.91023096]
[1752869444567,1.21486629,117280.0,117270.0,2.47060023]
[1752869444769,1.21486629,117280.0,117270.0,2.91023096]
[1752869447071,1.21486629,117280.0,117270.0,2.47060023]
[1752869447271,1.21486629,117280.0,117270.0,2.91023096]
[1752869448072,1.21486629,117280.0,117270.0,1.57668676]
[1752869448267,1.21486629,117280.0,117270.0,2.71691749]
[1752869448973,1.21486629,117280.0,117270.0,2.27728676]
[1752869449273,1.21486629,117280.0,117270.0,2.71691749]
[1752869450772,1.21486629,117280.0,117270.0,2.27728676]
[1752869450973,1.21486629,117280.0,117270.0,2.71691749]
[1752869453474,1.21486629,117280.0,117270.0,2.27728676]
[1752869453675,1.21486629,117280.0,117270.0,2.71691749]
[1752869456878,1.21486629,117280.0,117270.0,2.88734219]
[1752869457381,1.21486629,117280.0,117270.0,2.27728676]
[1752869457579,1.21486629,117280.0,117270.0,2.71691749]
[1752869458374,1.21486629,117280.0,117270.0,2.27728676]
[1752869458578,1.21486629,117280.0,117270.0,2.71691749]
[1752869460581,1.21486629,117280.0,117270.0,2.88734219]
[1752869460875,1.21486629,117280.0,117270.0,2.18774219]
[1752869461081,0.62680223,117280.0,117270.0,2.18774219]
[1752869461281,0.62680223,117280.0,117270.0,2.88818219]
[1752869461981,0.62680223,117280.0,117270.0,3.24898219]
[1752869462779,0.57905223,117280.0,117270.0,3.24898219]
[1752869463077,0.46192223,117280.0,117270.0,3.68861292]
[1752869463281,0.58435223,117280.0,117270.0,3.24898219]
[1752869463482,0.58435223,117280.0,117270.0,3.43965566]
[1752869464079,0.58435223,117280.0,117270.0,3.00002493]
[1752869464382,0.63022223,117280.0,117270.0,3.43965566]
[1752869465183,0.46192223,117280.0,117270.0,2.73921566]
[1752869465383,0.26868264,117280.0,117270.0,3.85902892]
[1752869465579,0.26868264,117280.0,117270.0,4.10902892]
[1752869465885,0.04313572,117290.0,117280.0,0.1704102]
[1752869466084,0.14313572,117290.0,117280.0,1.66047166]
[1752869466272,0.46,117290.0,117280.0,1.40201819]
[1752869466578,0.41938,117290.0,117280.0,2.28127965]
[1752869466778,0.37824,117290.0,117280.0,2.28127965]
[1752869466976,0.54654,117290.0,117280.0,0.5312102]
[1752869467174,0.54654,117290.0,117280.0,1.67108093]
[1752869467376,0.54654,117290.0,117280.0,1.2314502]
[1752869467572,0.54754,117290.0,117280.0,1.2314502]
[1752869467778,0.54754,117290.0,117280.0,2.11371166]
[1752869467974,0.54854,117290.0,117280.0,2.11371166]
[1752869468981,0.54854,117290.0,117280.0,1.2344502]
[1752869469183,0.54854,117290.0,117280.0,2.11371166]
[1752869469780,0.54854,117290.0,117280.0,1.67408093]
[1752869469976,0.54854,117290.0,117280.0,2.11371166]
[1752869470176,0.46991999,117290.0,117280.0,2.11371166]
[1752869470487,0.35748999,117290.0,117280.0,2.11371166]
[1752869470681,0.35748999,117290.0,117280.0,1.2344502]
[1752869470878,0.47991999,117290.0,117280.0,2.11371166]
[1752869471281,0.35748999,117290.0,117280.0,2.11371166]
[1752869472386,0.26548999,117290.0,117280.0,2.11471166]
[1752869473087,1.02667405,117290.0,117280.0,1.50355073]
[1752869473286,1.02667405,117290.0,117280.0,1.67396093]
[1752869473784,0.38791999,117290.0,117280.0,2.11359166]
[1752869474284,0.83016405,117290.0,117280.0,2.11359166]
[1752869474479,0.87603405,117290.0,117280.0,2.11359166]
[1752869475588,0.38791999,117290.0,117280.0,2.11359166]
[1752869475788,0.26548999,117290.0,117280.0,3.29319166]
[1752869477291,0.38791999,117290.0,117280.0,3.29319166]
[1752869477491,0.40513802,117290.0,117280.0,3.29319166]
[1752869478191,0.45100802,117290.0,117280.0,3.96946513]
[1752869479084,0.47497802,117290.0,117280.0,3.96946513]
[1752869480095,0.47497802,117290.0,117280.0,3.29319166]
[1752869480796,0.28270802,117290.0,117280.0,2.4139302]
[1752869481485,0.45100802,117290.0,117280.0,3.29319166]
[1752869482788,0.45100802,117290.0,117280.0,2.4139302]
[1752869482993,0.45100802,117290.0,117280.0,3.29319166]
[1752869483690,0.40513802,117290.0,117280.0,3.29319166]
[1752869483891,0.28270802,117290.0,117280.0,3.29319166]
[1752869484397,0.01871269,117300.0,117290.0,0.2248557]
[1752869484586,0.26,117300.0,117290.0,1.02528643]
[1752869484894,0.29877669,117320.0,117310.0,0.1703666]
[1752869485093,0.50243,117320.0,117310.0,2.47118806]
[1752869485695,0.5264,117320.0,117310.0,2.03155733]
[1752869486191,0.5284,117320.0,117310.0,2.03255733]
[1752869486496,0.57527,117320.0,117310.0,2.03555733]
[1752869486697,0.70194,117320.0,117310.0,2.03551733]
[1752869487992,0.70194,117320.0,117310.0,1.5958866]
[1752869488186,0.70194,117320.0,117310.0,2.03551733]
[1752869488694,0.70194,117320.0,117310.0,1.5958866]
[1752869489085,0.70194,117320.0,117310.0,2.03551733]
[1752869489597,0.70194,117320.0,117310.0,1.16523073]
[1752869489896,1.14418406,117320.0,117310.0,1.86503073]
[1752869490395,1.14418406,117320.0,117310.0,1.86499073]
[1752869490592,1.14418406,117320.0,117310.0,2.03535793]
[1752869490792,1.14418406,117320.0,117310.0,1.42536]
[1752869490993,1.14418406,117320.0,117310.0,1.86499073]
[1752869491194,1.14418406,117320.0,117310.0,1.16523073]
[1752869491392,1.14418406,117320.0,117310.0,1.86499073]
[1752869491695,1.14418406,117320.0,117310.0,2.03531793]
[1752869492587,1.14418406,117320.0,117310.0,1.16523073]
[1752869492787,1.14418406,117320.0,117310.0,1.86491073]
[1752869493097,1.14418406,117320.0,117310.0,0.70368]
[1752869493098,1.58381479,117320.0,117310.0,0.70368]
[1752869493495,1.58381479,117320.0,117310.0,0.004]
[1752869493800,1.58381479,117320.0,117310.0,0.70364]
[1752869494588,1.14418406,117320.0,117310.0,0.70364]
[1752869494786,1.94461479,117320.0,117310.0,0.70364]
[1752869494990,2.02026028,117320.0,117310.0,0.70364]
[1752869496397,2.03724681,117320.0,117310.0,0.70364]
[1752869496998,2.02026028,117320.0,117310.0,0.70364]
[1752869497202,1.94461479,117320.0,117310.0,0.70364]
[1752869498098,1.58381479,117320.0,117310.0,0.70364]
[1752869499591,1.14418406,117320.0,117310.0,0.70364]
[1752869499899,1.58381479,117320.0,117310.0,0.70364]
[1752869500498,1.14418406,117320.0,117310.0,0.70364]
[1752869500698,1.94461479,117320.0,117310.0,0.70364]
[1752869500892,1.58381479,117320.0,117310.0,0.70364]
[1752869501096,1.94461479,117320.0,117310.0,0.70364]
[1752869501296,1.58381479,117320.0,117310.0,0.70364]
[1752869501591,1.60080286,117320.0,117310.0,0.70364]
[1752869501801,2.03739626,117320.0,117310.0,0.70364]
[1752869502200,1.67659626,117320.0,117310.0,0.70364]
[1752869502598,1.15552147,117320.0,117310.0,0.70364]
[1752869502901,2.03739626,117320.0,117310.0,0.70364]
[1752869504805,1.67659626,117320.0,117310.0,0.70364]
[1752869505306,2.03739626,117320.0,117310.0,0.70364]
[1752869505607,2.03739626,117320.0,117310.0,0.70324]
[1752869505802,1.23696553,117320.0,117310.0,0.70324]
[1752869506402,0.79472147,117320.0,117310.0,1.4345744]
[1752869506702,1.23696553,117320.0,117310.0,1.6049415]
[1752869506895,1.21997746,117320.0,117310.0,1.6049415]
[1752869507301,1.14418406,117320.0,117310.0,1.6049415]
[1752869507496,0.57527,117320.0,117310.0,1.6049415]
[1752869507696,0.61193685,117320.0,117310.0,1.6049415]
[1752869507900,0.61193685,117320.0,117310.0,1.16531077]
[1752869508101,0.5513,117320.0,117310.0,1.6049415]
[1752869508405,0.70276,117320.0,117310.0,1.4345744]
[1752869508802,0.03636,117310.0,117300.0,1.97995073]
[1752869509003,0.60146,117310.0,117300.0,1.97995073]
[1752869509204,1.04370406,117310.0,117300.0,2.2394]
[1752869509406,1.27524091,117310.0,117300.0,1.8786]
[1752869509607,1.27524091,117310.0,117300.0,1.17952]
[1752869509803,1.65423479,117310.0,117300.0,1.87852]
[1752869510107,1.27524091,117310.0,117300.0,2.24032]
[1752869510305,1.27624091,117310.0,117300.0,2.24132]
[1752869510511,1.27824091,117310.0,117300.0,2.24132]